fUSD/lending_fUSD_20260513
["ID","MTS","AMOUNT","RATE_DAILY","PERIOD"]
[422147180,1778619057000,-448.648598,0.00041502,120]
[422147183,1778619057000,-151.0,0.00041502,120]
[422147188,1778619057000,-448.648598,0.00041502,120]
[422147181,1778619057000,-151.0,0.00041502,120]
[422147187,1778619057000,-151.0,0.00041502,120]
[422147186,1778619057000,-151.0,0.00041502,120]
[422147184,1778619057000,-151.0,0.00041502,120]
[422147185,1778619057000,-448.648598,0.00041502,120]
[422147190,1778619057000,-246.240007,0.00041502,120]
[422147191,1778619057000,-448.648593,0.00041502,120]
[422147192,1778619057000,-299.632183,0.00041502,120]
[422147196,1778619057000,-1154.057842,0.00041502,28]
[422147198,1778619057000,-1154.057842,0.00041502,28]
[422147194,1778619057000,-1154.057842,0.00041502,28]
[422147189,1778619057000,-230.697101,0.00041502,120]
[422147197,1778619057000,-1154.057842,0.00041502,28]
[422147195,1778619057000,-1154.057842,0.00041502,28]
[422147193,1778619057000,-1154.057842,0.00041502,28]
[422147200,1778619057000,-1154.05784648,0.00041502,28]
[422147201,1778619057000,-151.0,0.00041502,120]
[422147152,1778619057000,-226.128836,0.00041502,120]
[422147179,1778619057000,-448.648598,0.00041502,120]
[422147174,1778619057000,-597.427527,0.00041502,7]
[422147199,1778619057000,-1154.057842,0.00041502,28]
[422147175,1778619057000,-151.0,0.00041502,120]
[422147176,1778619057000,-151.0,0.00041502,120]
[422147149,1778619057000,-175.0,0.00041502,120]
[422147148,1778619057000,-1251.0,0.00041502,120]
[422147151,1778619057000,-226.128836,0.00041502,120]
[422147155,1778619057000,-226.128836,0.00041502,120]
[422147147,1778619057000,-510.0,0.00041502,120]
[422147156,1778619057000,-226.128836,0.00041502,120]
[422147161,1778619057000,-912.67522,0.00041502,120]
[422147163,1778619057000,-912.67522,0.00041502,120]
[422147160,1778619057000,-912.67522,0.00041502,120]
[422147165,1778619057000,-912.67522,0.00041502,120]
[422147162,1778619057000,-912.67522,0.00041502,120]
[422147154,1778619057000,-226.128836,0.00041502,120]
[422147158,1778619057000,-226.128836,0.00041502,120]
[422147159,1778619057000,-912.67522,0.00041502,120]
[422147173,1778619057000,-597.427521,0.00041502,7]
[422147172,1778619057000,-597.427521,0.00041502,7]
[422147171,1778619057000,-597.427521,0.00041502,7]
[422147170,1778619057000,-597.427521,0.00041502,7]
[422147169,1778619057000,-597.427521,0.00041502,7]
[422147166,1778619057000,-912.6752124,0.00041502,120]
[422147167,1778619057000,-597.427521,0.00041502,7]
[422147164,1778619057000,-912.67522,0.00041502,120]
[422147157,1778619057000,-226.128836,0.00041502,120]
[422147177,1778619057000,-448.648598,0.00041502,120]
[422147224,1778619058000,-1734.62772924,0.00041589,30]
[422147227,1778619058000,-2092.7,0.0004163,2]
[422147226,1778619058000,-2390.49,0.000416,14]
[422147231,1778619058000,-818.72,0.00041644,120]
[422147229,1778619058000,-1562.0,0.00041644,120]
[422147228,1778619058000,-1602.0,0.00041635,11]
[422147230,1778619058000,-1034.78,0.00041644,120]
[422147225,1778619058000,-235.55,0.000416,30]
[422147245,1778619058000,-7700.18240819,0.000418,90]
[422147232,1778619058000,-676.99,0.00041644,30]
[422147235,1778619058000,-25601.09798739,0.00041644,120]
[422147244,1778619058000,-1613.0535,0.00041799,30]
[422147238,1778619058000,-3300.0,0.000417,15]
[422147234,1778619058000,-541.87,0.00041644,120]
[422147236,1778619058000,-1000.0,0.0004166,30]
[422147223,1778619058000,-150.0,0.00041512,6]
[422147239,1778619058000,-399956.99,0.0004171,120]
[422147233,1778619058000,-669.13,0.00041644,30]
[422147221,1778619058000,-151.0,0.00041502,120]
[422147209,1778619058000,-225.902096,0.00041502,120]
[422147219,1778619058000,-151.0,0.00041502,120]
[422147240,1778619058000,-13891.97847348,0.00041747,2]
[422147203,1778619058000,-151.0,0.00041502,120]
[422147202,1778619058000,-151.0,0.00041502,120]
[422147206,1778619058000,-151.0,0.00041502,120]
[422147204,1778619058000,-151.0,0.00041502,120]
[422147205,1778619058000,-152.225093,0.00041502,30]
[422147207,1778619058000,-225.902096,0.00041502,120]
[422147211,1778619058000,-225.902096,0.00041502,120]
[422147222,1778619058000,-234.413864,0.00041511,62]
[422147210,1778619058000,-225.902096,0.00041502,120]
[422147212,1778619058000,-225.902096,0.00041502,120]
[422147214,1778619058000,-225.902086,0.00041502,120]
[422147213,1778619058000,-225.902096,0.00041502,120]
[422147218,1778619058000,-151.0,0.00041502,120]
[422147215,1778619058000,-905.86,0.00041502,60]
[422147216,1778619058000,-151.0,0.00041502,120]
[422147217,1778619058000,-151.0,0.00041502,120]
[422147220,1778619058000,-151.0,0.00041502,120]
[422147208,1778619058000,-225.902096,0.00041502,120]
[422147246,1778619058000,-1962.8569799,0.000418,120]
[422147237,1778619058000,-1815.17,0.000417,120]
[422147242,1778619058000,-1672.7364795,0.0004178,30]
[422147262,1778619058000,-10000.0,0.000419,30]
[422147268,1778619058000,-156.69290595,0.00041916,120]
[422147261,1778619058000,-70000.00000005,0.000419,120]
[422147270,1778619058000,-250.0,0.00041918,120]
[422147275,1778619058000,-297.78,0.00041973,120]
[422147277,1778619058000,-500.0,0.00041977,120]
[422147271,1778619058000,-4620.38,0.00041924,2]
[422147273,1778619058000,-1555.5,0.00041949,30]
[422147264,1778619058000,-15000.0,0.000419,120]
[422147272,1778619058000,-5259.42,0.00041924,2]
[422147276,1778619058000,-250.0,0.00041973,120]
[422147279,1778619058000,-1500.0,0.00041977,30]
[422147280,1778619058000,-1073.2979572,0.0004198,120]
[422147282,1778619058000,-104080.34183508,0.00041999,7]
[422147283,1778619058000,-50000.0,0.00042,73]
[422147285,1778619058000,-50000.0,0.00042,76]
[422147281,1778619058000,-330.0,0.00041992,93]
[422147241,1778619058000,-4327.28,0.00041761,2]
[422147274,1778619058000,-1460.7,0.00041972,120]
[422147266,1778619058000,-594.7831071,0.000419,2]
[422147278,1778619058000,-216.98009403,0.00041977,120]
[422147265,1778619058000,-7881.586633,0.000419,2]
[422147284,1778619058000,-50000.0,0.00042,74]
[422147243,1778619058000,-39814.59991724,0.0004179,120]
[422147247,1778619058000,-1000.0,0.000418,30]
[422147267,1778619058000,-200.0,0.00041915,7]
[422147249,1778619058000,-26425.24755554,0.000418,31]
[422147250,1778619058000,-272.87,0.000418,120]
[422147251,1778619058000,-505.40804509,0.000418,120]
[422147252,1778619058000,-161.34874128,0.000418,31]
[422147256,1778619058000,-450.4351993,0.00041864,30]
[422147248,1778619058000,-5000.0,0.000418,90]
[422147253,1778619058000,-58704.08989556,0.000418,31]
[422147257,1778619058000,-200.0,0.00041896,7]
[422147255,1778619058000,-150.0,0.00041864,30]
[422147259,1778619058000,-200.0,0.00041896,7]
[422147269,1778619058000,-1562.0,0.00041918,120]
[422147258,1778619058000,-200.0,0.00041896,7]
[422147260,1778619058000,-210000.0,0.000419,30]
[422147254,1778619058000,-3762.0,0.000418,15]
[422147263,1778619058000,-2071.37119365,0.000419,5]
[422147296,1778619059000,-1000000.0,0.00042,120]
[422147298,1778619059000,-1000000.0,0.00042,120]
[422147295,1778619059000,-1000000.0,0.00042,120]
[422147287,1778619059000,-424462.89403061,0.00042,120]
[422147291,1778619059000,-1000000.0,0.00042,120]
[422147290,1778619059000,-1000000.0,0.00042,120]
[422147288,1778619059000,-1000000.0,0.00042,120]
[422147286,1778619059000,-82227.06397715,0.00042,42]
[422147293,1778619059000,-1000000.0,0.00042,120]
[422147292,1778619059000,-1000000.0,0.00042,120]
[422147294,1778619059000,-1000000.0,0.00042,120]
[422147289,1778619059000,-1000000.0,0.00042,120]
[422147297,1778619059000,-1000000.0,0.00042,120]
[422147304,1778619059000,-151.0,0.00041472,120]
[422147302,1778619059000,-2354.0,0.00042,120]
[422147311,1778619059000,-1533.64138534,0.00027397,10]
[422147308,1778619059000,-175.0,0.00023,2]
[422147309,1778619059000,-280.76,0.00023322,14]
[422147310,1778619059000,-175.0,0.00024,2]
[422147307,1778619059000,-280.76,0.00020823,14]
[422147312,1778619059000,-2137.9822266,0.00027397,10]
[422147306,1778619059000,-597.50000009,0.00042,120]
[422147301,1778619059000,-22393.59033045,0.00042,120]
[422147300,1778619059000,-151.0,0.0004,30]
[422147303,1778619059000,-437.05694,0.00042,120]
[422147305,1778619059000,-7116.92219412,0.00042,120]
[422147299,1778619059000,-833652.60328689,0.00042,120]
[422147318,1778619070000,-9603.20961511,0.00027397,10]
[422147313,1778619070000,-417.0,0.00019235,2]
[422147314,1778619070000,-417.0,0.00022235,2]
[422147315,1778619070000,-187.0,0.00025,2]
[422147317,1778619070000,-396.79038489,0.00025235,2]
[422147316,1778619070000,-20.20961511,0.00025235,2]
[422147319,1778619070000,-257.72629871,0.00027397,10]
[422147320,1778619070000,-54.92047424,0.00027397,10]
[422147322,1778619070000,-479.54551519,0.00028293,2]
[422147323,1778619070000,-317.39048723,0.00028293,2]
[422147324,1778619070000,-4222.47767549,0.00028293,2]
[422147326,1778619070000,-483.99032451,0.00032495,2]
[422147328,1778619070000,-398.865,0.00032495,2]
[422147327,1778619070000,-1123.322354,0.00032495,2]
[422147329,1778619070000,-1079.49249562,0.00032495,2]
[422147325,1778619070000,-417.0,0.00031235,2]
[422147321,1778619070000,-417.0,0.00028235,2]
[422147339,1778619072000,-300.0,0.00037377,2]
[422147337,1778619072000,-300.0,0.00037377,2]
[422147338,1778619072000,-300.0,0.00037377,2]
[422147336,1778619072000,-300.0,0.00037377,2]
[422147331,1778619072000,-417.0,0.00034235,2]
[422147335,1778619072000,-527.40352978,0.00037377,2]
[422147333,1778619072000,-300.0,0.00037377,2]
[422147332,1778619072000,-417.0,0.00037235,2]
[422147330,1778619072000,-1933.74350378,0.00032495,2]
[422147342,1778619072000,-2292.8,0.00039244,2]
[422147334,1778619072000,-300.0,0.00037377,2]
[422147340,1778619072000,-507.0,0.00038502,2]
[422147343,1778619072000,-967.71,0.00039244,2]
[422147344,1778619072000,-2292.8,0.00039297,7]
[422147353,1778619072000,-967.71,0.0003951,30]
[422147355,1778619072000,-967.71,0.00039563,2]
[422147352,1778619072000,-2292.8,0.0003951,30]
[422147351,1778619072000,-967.71,0.00039457,7]
[422147349,1778619072000,-967.71,0.00039403,2]
[422147341,1778619072000,-507.0,0.00039182,2]
[422147348,1778619072000,-2292.8,0.00039403,2]
[422147346,1778619072000,-2292.8,0.0003935,30]
[422147347,1778619072000,-967.71,0.0003935,30]
[422147354,1778619072000,-2292.8,0.00039563,2]
[422147345,1778619072000,-967.71,0.00039297,7]
[422147350,1778619072000,-2292.8,0.00039457,7]
[422147372,1778619073000,-417.0,0.00040235,2]
[422147369,1778619073000,-151.0,0.00039999,30]
[422147375,1778619073000,-171.81453,0.00041,30]
[422147379,1778619073000,-151.0,0.00041096,120]
[422147378,1778619073000,-151.0,0.00041096,120]
[422147377,1778619073000,-151.0,0.00041096,120]
[422147386,1778619073000,-151.0,0.00041096,120]
[422147380,1778619073000,-151.0,0.00041096,120]
[422147368,1778619073000,-2292.8,0.0003999,30]
[422147382,1778619073000,-151.0,0.00041096,120]
[422147383,1778619073000,-151.0,0.00041096,120]
[422147385,1778619073000,-151.0,0.00041096,120]
[422147376,1778619073000,-151.0,0.00041096,120]
[422147363,1778619073000,-967.71,0.00039776,7]
[422147367,1778619073000,-2292.8,0.00039936,7]
[422147388,1778619073000,-151.0,0.00041096,120]
[422147373,1778619073000,-507.0,0.00040543,10]
[422147366,1778619073000,-2292.8,0.00039883,2]
[422147371,1778619073000,-2292.8,0.00040043,2]
[422147365,1778619073000,-507.0,0.00039862,3]
[422147374,1778619073000,-151.0,0.00041,30]
[422147364,1778619073000,-2292.8,0.0003983,30]
[422147362,1778619073000,-2292.8,0.00039776,7]
[422147361,1778619073000,-967.71,0.00039723,2]
[422147360,1778619073000,-2292.8,0.00039723,2]
[422147359,1778619073000,-967.71,0.0003967,30]
[422147358,1778619073000,-2292.8,0.0003967,30]
[422147356,1778619073000,-2292.8,0.00039617,7]
[422147357,1778619073000,-967.71,0.00039617,7]
[422147370,1778619073000,-151.0,0.0004,30]
[422147387,1778619073000,-151.0,0.00041096,120]
[422147381,1778619073000,-151.0,0.00041096,120]
[422147389,1778619073000,-151.0,0.00041096,120]
[422147418,1778619073000,-1000000.0,0.00042,120]
[422147420,1778619073000,-500986.36027078,0.00042,120]
[422147415,1778619073000,-1000000.0,0.00042,120]
[422147419,1778619073000,-1000000.0,0.00042,120]
[422147413,1778619073000,-1000000.0,0.00042,120]
[422147414,1778619073000,-1000000.0,0.00042,120]
[422147416,1778619073000,-1000000.0,0.00042,120]
[422147417,1778619073000,-1000000.0,0.00042,120]
[422147398,1778619073000,-280.560327,0.00041472,120]
[422147412,1778619073000,-1000000.0,0.00042,120]
[422147409,1778619073000,-1000000.0,0.00042,120]
[422147408,1778619073000,-1000000.0,0.00042,120]
[422147404,1778619073000,-133448.32724845,0.00042,120]
[422147407,1778619073000,-1000000.0,0.00042,120]
[422147400,1778619073000,-151.0,0.00041472,120]
[422147411,1778619073000,-1000000.0,0.00042,120]
[422147403,1778619073000,-507.0,0.00041903,10]
[422147410,1778619073000,-1000000.0,0.00042,120]
[422147391,1778619073000,-507.0,0.00041223,10]
[422147394,1778619073000,-151.0,0.00041472,120]
[422147395,1778619073000,-151.0,0.00041472,120]
[422147396,1778619073000,-151.0,0.00041472,120]
[422147390,1778619073000,-151.0,0.00041096,120]
[422147392,1778619073000,-151.0,0.00041472,120]
[422147384,1778619073000,-151.0,0.00041096,120]
[422147397,1778619073000,-151.0,0.00041472,120]
[422147399,1778619073000,-151.0,0.00041472,120]
[422147406,1778619073000,-1000000.0,0.00042,120]
[422147405,1778619073000,-1000000.0,0.00042,120]
[422147402,1778619073000,-151.0,0.00041472,120]
[422147393,1778619073000,-151.0,0.00041472,120]
[422147401,1778619073000,-151.0,0.00041472,120]
[422147421,1778619074000,-417.0,0.00019235,2]
[422147423,1778619085000,-5000.01,0.00019235,2]
[422147425,1778619218000,-300.0,0.00011601,2]
[422147426,1778619229000,-5108.46,0.00011602,2]
[422147427,1778619251000,-214.86625456,0.00011617,2]
[422147429,1778619345000,-160.0,0.00014,2]
[422147428,1778619345000,-160.0,0.00011617,2]
[422147434,1778619346000,-70.0,0.00016,2]
[422147435,1778619346000,-90.0,0.00016242,2]
[422147433,1778619346000,-160.0,0.00011632,2]
[422147432,1778619346000,-160.0,0.00016,2]
[422147431,1778619346000,-70.0,0.00016,2]
[422147430,1778619346000,-90.0,0.00014,2]
[422147436,1778619347000,-160.0,0.00016242,2]
[422147437,1778619347000,-160.0,0.00016242,2]
[422147438,1778619348000,-160.0,0.00016242,2]
[422147439,1778619348000,152.0,0.00026911,120]
[422147442,1778619571000,65.45233158,0.00016438,30]
[422147441,1778619571000,154.03742829,0.00016438,30]
[422147445,1778619903000,486.4125913,0.0001,2]
[422147446,1778619905000,193.48087025,7.888e-05,2]
[422147447,1778619916000,1248.93204282,0.0001,2]
[422147449,1778619924000,100000.0,0.00041481,120]
[422147450,1778619935000,399964.69316329,0.00041481,120]
[422147455,1778619992000,-31.88001806,0.00010662,2]
[422147454,1778619992000,-163.34,0.00010662,2]
[422147463,1778620153000,-708.07998194,0.00010662,2]
[422147962,1778620251000,-489.96,0.00011201,2]
[422147961,1778620251000,-250.0,0.00010932,2]
[422147963,1778620251000,-250.0,0.00011201,2]
[422147964,1778620251000,-347.56555501,0.00011346,2]
[422147965,1778620251000,-142.39444499,0.000114,2]
[422147969,1778620251000,-205.47124607,0.00011728,2]
[422147968,1778620251000,-44.52875393,0.00011728,2]
[422147966,1778620251000,-502.43124607,0.000114,2]
[422147970,1778620251000,-534.48875393,0.0001174,2]
[422147972,1778620251000,-534.48875393,0.00012279,2]
[422147971,1778620251000,-205.47124607,0.0001174,2]
[422147967,1778620251000,-193.0,0.00011728,2]
[422147973,1778620252000,-205.47124607,0.00012279,2]
[422147974,1778620252000,-534.48875393,0.00012819,2]
[422147975,1778620252000,-205.47124607,0.00012819,2]
[422147977,1778620252000,-34.48875393,0.00013227,2]
[422147978,1778620252000,-337.40124607,0.00013227,2]
[422147979,1778620252000,-157.98,0.00013324,2]
[422147980,1778620252000,-244.57875393,0.00013357,2]
[422147976,1778620252000,-500.0,0.00013,2]
[422148002,1778620253000,-200.0,0.00014358,2]
[422148004,1778620253000,-1200.0,0.000144,5]
[422147997,1778620253000,-2300.0,0.000142,5]
[422147996,1778620253000,-500.0,0.000141,5]
[422147995,1778620253000,-1500.0,0.000141,5]
[422147994,1778620253000,-200.0,0.00014,5]
[422147993,1778620253000,-700.0,0.00014,5]
[422147990,1778620253000,-150.0,0.00013611,2]
[422147987,1778620253000,-150.0,0.00013488,2]
[422147988,1778620253000,-150.0,0.00013488,2]
[422147992,1778620253000,-739.96,0.00013897,2]
[422147989,1778620253000,-150.0,0.00013488,2]
[422147986,1778620253000,-150.0,0.00013488,2]
[422147985,1778620253000,-300.0,0.00013487,2]
[422147984,1778620253000,-677.6224609,0.00013358,2]
[422147982,1778620253000,-437.6624609,0.00013357,2]
[422147983,1778620253000,-62.3375391,0.00013358,2]
[422147981,1778620253000,-517.75878517,0.00013357,2]
[422147991,1778620253000,-2269.23,0.00013632,2]
[422147999,1778620253000,-5446.82,0.0001427,2]
[422148006,1778620253000,-150.0,0.00014436,2]
[422148001,1778620253000,-1000.0,0.000143,5]
[422148000,1778620253000,-3100.0,0.000143,5]
[422148022,1778620253000,-1254.41808677,0.000148,2]
[422148019,1778620253000,-172617.33247187,0.000148,2]
[422148020,1778620253000,-133889.06783325,0.000148,2]
[422148021,1778620253000,-189831.03552669,0.000148,2]
[422148018,1778620253000,-993063.14589326,0.000148,2]
[422148016,1778620253000,-4286.193,0.000148,2]
[422148017,1778620253000,-267.54670085,0.000148,2]
[422148014,1778620253000,-700.0,0.000147,5]
[422148015,1778620253000,-200.0,0.000147,5]
[422148012,1778620253000,-200.0,0.000146,5]
[422148011,1778620253000,-700.0,0.000146,5]
[422148003,1778620253000,-3900.0,0.000144,5]
[422148005,1778620253000,-1861.559,0.00014436,2]
[422148007,1778620253000,-161.837,0.00014436,2]
[422147998,1778620253000,-700.0,0.000142,5]
[422148013,1778620253000,-480.0,0.00014692,2]
[422148010,1778620253000,-200.0,0.000145,5]
[422148008,1778620253000,-739.96,0.00014436,2]
[422148009,1778620253000,-700.0,0.000145,5]
[422148041,1778620254000,-3131.6497458,0.00015,2]
[422148047,1778620254000,-11938.18897892,0.00015,2]
[422148038,1778620254000,-17094288.87874817,0.00015,2]
[422148039,1778620254000,-499.24,0.00015,2]
[422148037,1778620254000,-739.96,0.00014975,2]
[422148033,1778620254000,-2500.0,0.000149,2]
[422148034,1778620254000,-535.71547193,0.000149,2]
[422148035,1778620254000,-4957.99239282,0.000149,2]
[422148032,1778620254000,-700.0,0.000149,5]
[422148023,1778620254000,-1009345.00018816,0.000148,2]
[422148031,1778620254000,-116065.95701206,0.000149,2]
[422148030,1778620254000,-1662.0,0.000149,5]
[422148036,1778620254000,-1177.78948261,0.000149,2]
[422148026,1778620254000,-1000.0,0.00014899,2]
[422148028,1778620254000,-678.32125699,0.000149,3]
[422148027,1778620254000,-5000.0,0.000149,2]
[422148025,1778620254000,-200.0,0.000148,5]
[422148024,1778620254000,-700.0,0.000148,5]
[422148029,1778620254000,-2460.61812541,0.000149,2]
[422148048,1778620254000,-4972.2398002,0.00015,2]
[422148053,1778620254000,-739.96,0.00015,2]
[422148042,1778620254000,-5743490.98606808,0.00015,2]
[422148064,1778620254000,-22232.18,0.00015,2]
[422148063,1778620254000,-167.82,0.00013419,2]
[422148062,1778620254000,-412860.58630622,0.00015,2]
[422148060,1778620254000,-722.8955016,0.00015,2]
[422148061,1778620254000,-5000.00117583,0.00015,2]
[422148040,1778620254000,-2075.42963494,0.00015,2]
[422148059,1778620254000,-1817.96922941,0.00015,2]
[422148057,1778620254000,-726.58415626,0.00013061,2]
[422148056,1778620254000,-2759.0,0.00015,2]
[422148058,1778620254000,-1999.99584374,0.00013061,2]
[422148054,1778620254000,-412.37388559,0.00015,2]
[422148055,1778620254000,-8060.00000001,0.00015,2]
[422148045,1778620254000,-3431.39827791,0.00015,2]
[422148046,1778620254000,-1128.37587025,0.00015,2]
[422148044,1778620254000,-270.34445798,0.00015,2]
[422148043,1778620254000,-1101.93679722,0.00015,2]
[422148049,1778620254000,-904.1372,0.00015,2]
[422148051,1778620254000,-1222.69478,0.00015,2]
[422148052,1778620254000,-735744.40358388,0.00015,2]
[422148050,1778620254000,-1373.25000103,0.00015,2]
[422148065,1778620255000,-304.0,0.00015,2]
[422148070,1778620397000,267.897278,0.00021936,120]
[422148075,1778620400000,616.07,8.668e-05,2]
[422148074,1778620400000,616.07,8.303e-05,2]
[422148073,1778620400000,616.07,7.939e-05,2]
[422148072,1778620400000,616.07,7.574e-05,2]
[422148071,1778620400000,616.07,7.209e-05,2]
[422148076,1778620401000,616.07,9.032e-05,2]
[422148078,1778620401000,616.07,9.761e-05,2]
[422148077,1778620401000,616.07,9.397e-05,2]
[422148102,1778620409000,610.13273418,0.0001,2]
[422148103,1778620611000,500.0,0.00041485,120]
[422148106,1778620706000,-616.07,0.00010126,2]
[422148108,1778620706000,-500.0,0.00010491,2]
[422148109,1778620706000,-116.07,0.00010491,2]
[422148110,1778620706000,-175.20153909,0.00010562,2]
[422148112,1778620706000,-231.91406503,0.00010651,2]
[422148107,1778620706000,-250.0,0.00010308,2]
[422148114,1778620706000,-556.71252594,0.00010855,2]
[422148113,1778620706000,-59.35747406,0.00010855,2]
[422148115,1778620706000,-59.35747406,0.00011139,2]
[422148116,1778620706000,-190.64252594,0.00011139,2]
[422148117,1778620706000,-300.0,0.00011139,2]
[422148111,1778620706000,-324.79846091,0.00010562,2]
[422148119,1778620707000,-248.27439588,0.0001122,2]
[422148118,1778620707000,-125.42747406,0.0001122,2]
[422148120,1778620707000,-242.36813006,0.0001122,2]
[422148121,1778620707000,-150.0,0.00011407,2]
[422148122,1778620730000,26281.0,0.00041257,120]
[422148123,1778620818000,15000.0,0.00041257,120]
[422148126,1778620911000,20000.0,0.00041257,120]
[422148130,1778621036000,7009.42066286,0.00041294,120]
[422148131,1778621217000,-232.16859287,0.00011584,2]
[422148132,1778621228000,223.70186994,6.58e-05,2]
[422148133,1778621228000,26.56813006,6.58e-05,2]
[422148134,1778621228000,250.27,6.912e-05,2]
[422148135,1778621228000,250.27,7.245e-05,2]
[422148137,1778621228000,161.30813006,7.578e-05,2]
[422148136,1778621228000,88.96186994,7.578e-05,2]
[422148146,1778621229000,14.67406503,9.241e-05,2]
[422148145,1778621229000,235.59593497,9.241e-05,2]
[422148144,1778621229000,14.40406503,8.909e-05,2]
[422148143,1778621229000,235.86593497,8.909e-05,2]
[422148142,1778621229000,130.20406503,8.576e-05,2]
[422148141,1778621229000,120.06593497,8.576e-05,2]
[422148140,1778621229000,111.84813006,8.243e-05,2]
[422148139,1778621229000,138.42186994,8.243e-05,2]
[422148138,1778621229000,250.27,7.911e-05,2]
[422148148,1778621230000,250.27,9.907e-05,2]
[422148147,1778621230000,250.27,9.574e-05,2]
[422148150,1778621251000,28243.22261329,0.0001,2]
[422148149,1778621251000,100.85593497,0.0001,2]
[422148161,1778621394000,-250.27,0.00012108,2]
[422148160,1778621394000,-303.07702771,0.00012108,2]
[422148159,1778621394000,-208.2157166,0.00012034,2]
[422148158,1778621394000,-250.27,0.00011903,2]
[422148157,1778621394000,-291.27153909,0.00011597,2]
[422148155,1778621394000,-250.27,0.00011238,2]
[422148156,1778621394000,-250.27,0.0001157,2]
[422148154,1778621394000,-250.27,0.00010905,2]
[422148153,1778621394000,-209.26846091,0.00010572,2]
[422148151,1778621394000,-250.27,0.0001024,2]
[422148152,1778621394000,-41.00153909,0.00010572,2]
[422148162,1778621395000,-250.27,0.00012108,2]
[422148163,1778621395000,-107.32297229,0.00012108,2]
[422148189,1778621431000,-165.6,0.00013202,2]
[422148187,1778621431000,-787.53221972,0.00013132,2]
[422148188,1778621431000,-8261.07,0.00013133,2]
[422148186,1778621431000,-2696.88,0.0001313,2]
[422148185,1778621431000,-2657.72,0.00013069,2]
[422148184,1778621431000,-2320.94,0.00013064,2]
[422148183,1778621431000,-500.0,0.00013044,2]
[422148180,1778621431000,-250.27,0.00012901,2]
[422148181,1778621431000,-215.11,0.00012971,2]
[422148182,1778621431000,-2840.0,0.00012971,2]
[422148178,1778621431000,-4057.67,0.0001288,2]
[422148179,1778621431000,-2000.0,0.00012886,2]
[422148177,1778621431000,-4269.76,0.0001284,2]
[422148176,1778621431000,-227.81,0.00012813,2]
[422148175,1778621431000,-150.0,0.00012801,2]
[422148174,1778621431000,-4448.3719677,0.00012779,2]
[422148173,1778621431000,-5139.9180323,0.00012779,2]
[422148171,1778621431000,-154.524804,0.00012778,2]
[422148172,1778621431000,-300.0,0.00012778,2]
[422148167,1778621431000,-179.13317937,0.00012701,2]
[422148165,1778621431000,-250.27,0.00012236,2]
[422148169,1778621431000,-376.52725498,0.00012778,2]
[422148170,1778621431000,-145.475196,0.00012778,2]
[422148168,1778621431000,-823.47274502,0.00012778,2]
[422148166,1778621431000,-250.27,0.00012569,2]
[422148191,1778621431000,-1450.56465078,0.00013275,2]
[422148190,1778621431000,-7283.02935235,0.00013217,2]
[422148206,1778621431000,-200.0,0.00013699,2]
[422148194,1778621431000,-1719867.96212882,0.00013285,2]
[422148217,1778621431000,-166.66,0.0001411,2]
[422148218,1778621431000,-166.66,0.00014247,2]
[422148220,1778621431000,-166.66,0.00014384,2]
[422148215,1778621431000,-1680.0,0.00014056,2]
[422148216,1778621431000,-150.0,0.00014087,2]
[422148192,1778621431000,-150.0,0.00013284,2]